Cogmind - Beta 10.2 @@@ ROGUE MODE // 2021.12.15 @ 19:32:31 Player: Kalkkis Result: Destroyed by D-53 Grenadier with Mini Grenade Launcher Performance ------------- Evolutions (0) 0 Regions Visited (2) 400 Robots Destroyed (16) 80 Value Destroyed (172) 172 Prototype IDs (2) 40 Alien Tech Used (0) 0 Bonus (-80) -80 TOTAL SCORE: 612 Bonus ------- Friendly Fire -80 Cogmind --------- Core Integrity 0/250 Matter 197/300 Energy 34/250 System Corruption 0% Temperature Cool (0) Movement Rolling (100) Ox2 Location -10/Mines Parts ------- > --- POWER (1) -------- Ion Engine > --- PROPULSION (2) --- Wheel > --- UTILITY (2) ------ Large Storage Unit Targeting Computer > --- WEAPON (2) ------- (None) > --- INVENTORY (10) --- High-capacity Storage Unit Sensor Array Experimental Sensor Array Hacking Suite Grenade Launcher Datajack Mining Laser Peak State ------------ > --- POWER ------------ Light Ion Engine > --- PROPULSION ------- Wheel Wheel > --- UTILITY ---------- High-capacity Storage Unit Targeting Computer > --- WEAPON ----------- Small Laser Small Laser > --- INVENTORY -------- Ion Engine Aluminum Leg Aluminum Leg Large Storage Unit Large Storage Unit Structural Scanner Light Assault Rifle Light Assault Rifle Grenade Launcher Mining Laser [Rating: 8] Favorites ----------- Power Light Ion Engine Engine Light Ion Engine Propulsion Wheel Leg Aluminum Leg Wheel Wheel Utility Targeting Computer Storage Large Storage Unit Processor Targeting Computer Weapon Small Laser Energy Gun Small Laser Ballistic Gun Light Assault Rifle Launcher Grenade Launcher Special Weapon Mining Laser Special Melee Weapon Datajack Build | -11 -10 -10 ------- Run | Scr Mat Min Slots Evolved . | . . . Power . | . . . Propulsion . | . . . Utility . | . . . Weapon . | . . . Parts Attached 24 | 6 13 5 Power 2 | 1 . 1 Engine 2 | 1 . 1 Core . | . . . Reactor . | . . . Propulsion 7 | 2 4 1 Treads . | . . . Leg 1 | . 1 . Wheel 6 | 2 3 1 Hover . | . . . Flight . | . . . Utility 5 | 1 4 . Device . | . . . Storage 4 | 1 3 . Processor 1 | . 1 . Hackware . | . . . Protection . | . . . Artifact . | . . . Weapon 10 | 2 5 3 Energy Gun 6 | 1 3 2 Energy Cannon . | . . . Ballistic Gun 1 | 1 . . Ballistic Cannon . | . . . Launcher 1 | . . 1 Special Weapon 1 | . 1 . Impact Weapon . | . . . Slashing Weapon . | . . . Piercing Weapon . | . . . Special Melee Weapon 1 | . 1 . Unidentified Prototypes . | . . . Parts Lost 6 | . . 6 Power 1 | . . 1 Propulsion 2 | . . 2 Utility . | . . . Weapon 3 | . . 3 Highest Loss Streak 6 | . . 6 Average Slot Usage (%) 99 | . 99 97 Engine 13 | . 14 13 Wheel 27 | . 27 26 Storage 14 | . 14 14 Processor 13 | . 13 14 Energy Gun 18 | . 18 14 Launcher 1 | . . 12 Special Weapon 2 | . 3 . Special Melee Weapon 4 | . 5 . Naked Turns . | . . . Heaviest Build 24 | 9 22 24 Greatest Support 20 | 20 20 20 Greatest Overweight (x) 2 | . 2 1 Average Overweight (x) . | . . 1 Largest Inventory Capacity 12 | 6 12 10 Average Capacity 9 | 5 9 10 Most Carried 10 | 4 10 10 Average Carried 9 | 2 9 9 Final Capacity 10 | 6 10 10 Final Carried 10 | 4 10 7 Class Distribution -------------------- 100% | Mutant Dominant Class ---------------- Mutant | -10/Materials Mutant | -10/Mines Resources | -11 -10 -10 ----------- Run | Scr Mat Min Matter Collected 422 | 262 133 27 Remotely . | . . . Salvage Created 325 | 84 164 77 Parts 28 | . 15 13 Haulers Intercepted 1 | . 1 . Recyclers Shooed 4 | . 3 1 Parts Field Recycled . | . . . Retrieved Matter . | . . . Parts Self-Destructed . | . . . Prevented . | . . . Kills | -11 -10 -10 ------- Run | Scr Mat Min Combat Hostiles Destroyed 16 | . 4 12 Guns 4 | . 4 . AOE 12 | . . 12 Classes Destroyed 9 | 1 6 2 Worker 1 | . . 1 Tunneler 1 | . 1 . Hauler 1 | . 1 . Recycler 1 | 1 . . Operator 1 | . 1 . Watcher 1 | . 1 . Swarmer 9 | . 3 6 Grunt 1 | . 1 . Assembled 6 | . . 6 Best Kill Streak 7 | 1 3 7 Combat Bots Only 6 | . 3 6 Max Kills in Single Turn 3 | 1 1 3 Gunslinging . | . . . Exploded 3 | . . 3 Melee . | . . . Uniques/NPCs Destroyed . | . . . Combat | -11 -10 -10 -------- Run | Scr Mat Min Damage Taken 694 | . 74 620 Core 259 | . 19 240 Absorbed by Shields . | . . . Core Remaining (%) 100 | 100 . . Volleys Fired 51 | 2 30 19 Largest 2 | 2 2 2 Hottest 100 | 60 100 80 Shots Fired 75 | 4 48 23 Gun 61 | 4 45 12 Cannon . | . . . Launcher 11 | . . 11 Special 3 | . 3 . Kinetic 5 | 2 3 . Thermal 45 | 2 43 . Explosive 11 | . . 11 Electromagnetic 14 | . 2 12 Robot Hit Streak 10 | 3 10 3 Robot Miss Streak 4 | 1 2 4 Penetration Max . | . . . Secondary Targets . | . . . Shots Hit Robots 57 | 3 46 8 Core Hits 40 | 2 14 24 Critical Hits . | . . . Critical Kills . | . . . Critical Parts Destroyed . | . . . Melee Attacks 17 | . 17 . Impact . | . . . Slashing . | . . . Piercing . | . . . Sneak Attacks 13 | . 13 . Combat Hostiles . | . . . Follow-up Attacks . | . . . Damage Inflicted 1323 | 30 414 879 Guns 470 | 30 348 92 Cannons . | . . . Explosions 853 | . 66 787 Melee . | . . . Ramming . | . . . Kinetic 18 | 8 10 . Thermal 411 | 22 389 . Explosive 787 | . . 787 Electromagnetic 107 | . 15 92 Impact . | . . . Slashing . | . . . Piercing . | . . . Highest Corruption . | . . . Average Corruption . | . . . Corruption Purged . | . . . Overload Shots . | . . . Overflow Damage 2 | . . 2 Projectiles . | . . . Explosions 2 | . . 2 Melee . | . . . Knockbacks . | . . . Impact . | . . . Kinetic . | . . . Secondary . | . . . Self-Inflicted Damage 65 | . . 65 Shots 2 | . . 2 Rammed . | . . . Targets Rammed . | . . . Kicked . | . . . Crushed . | . . . Highest Temperature 114 | 20 114 36 Average Temperature 27 | 15 30 17 Received Heat Transfer 24 | . 24 . Siege Activations . | . . . Robots Corrupted . | . . . Combat Hostiles . | . . . Parts Fried . | . . . Impact Corruptions . | . . . Robots Melted . | . . . Combat Hostiles . | . . . Parts Melted 1 | . 1 . Heat Transferred 875 | 50 825 . Parts Sabotaged . | . . . Parts Stolen . | . . . Parts Stripped . | . . . Power Chain Reactions 1 | . 1 . Missiles Intercepted . | . . . Alert | -11 -10 -10 ------- Run | Scr Mat Min Peak Influence 175 | 5 150 175 Initial 5 | . 3 5 Average 55 | 1 43 145 Maximum Alert Level . | . . . Low Security (%) 100 | 100 100 100 Level 1 . | . . . Level 2 . | . . . Level 3 . | . . . Level 4 . | . . . Level 5 . | . . . High Security . | . . . Max Security . | . . . Squads Dispatched 3 | . 3 . Investigation 2 | . 2 . Extermination . | . . . Reinforcement 1 | . 1 . Assault . | . . . Garrison . | . . . Intercept . | . . . Construction Impeded . | . . . Haulers Reinforced . | . . . Stealth | -11 -10 -10 --------- Run | Scr Mat Min Distress Signals 3 | . 3 . Communications Jammed . | . . . Distress Signals . | . . . Times Spotted 31 | . 13 18 Peak Tracking Total 5 | . 3 5 Tactical Retreats . | . . . Traps | -11 -10 -10 ------- Run | Scr Mat Min Traps Triggered . | . . . Indirectly . | . . . Trap Hack Attempts . | . . . Triggered . | . . . Disarmed . | . . . Reprogrammed . | . . . Reused . | . . . Traps Extracted . | . . . Installed . | . . . Triggered . | . . . Machines | -11 -10 -10 ---------- Run | Scr Mat Min Machines Disabled . | . . . Max in Single Turn . | . . . Machines Sabotaged . | . . . Garrisons Compromised . | . . . Overloaded Fab Kills . | . . . Fab Network Shutdowns . | . . . Hacking | -11 -10 -10 --------- Run | Scr Mat Min Machines Accessed 8 | . 8 . Terminals 6 | . 6 . Fabricators . | . . . Repair Stations 1 | . 1 . Recycling Units 1 | . 1 . Scanalyzers . | . . . Garrison Access . | . . . Total Hacks 32 | . 32 . Successful 17 | . 17 . Failed 14 | . 14 . Catastrophic . | . . . Database Lockouts 1 | . 1 . Manual 18 | . 18 . Terminals 21 | . 21 . Fabricators . | . . . Repair Stations 9 | . 9 . Recycling Units 2 | . 2 . Scanalyzers . | . . . Garrison Access . | . . . Terminal Hacks 5 | . 5 . Robot Analysis 1 | . 1 . Prototype ID Bank 1 | . 1 . Alert Level 1 | . 1 . Locate Traps 1 | . 1 . Dispatch Records 1 | . 1 . Fabricator Hacks . | . . . Repair Station Hacks 6 | . 6 . Scan Component 3 | . 3 . Repair 3 | . 3 . Recycling Unit Hacks . | . . . Scanalyzer . | . . . Garrison Access Hacks . | . . . Unauthorized Hacks 6 | . 6 . Terminals 5 | . 5 . Track 2 | . 2 . Botnet 2 | . 2 . Operators 1 | . 1 . Fabricators . | . . . Repair Stations . | . . . Recycling Units 1 | . 1 . Recyclers 1 | . 1 . Scanalyzers . | . . . Garrison Access . | . . . Data Cores Recovered . | . . . Used . | . . . Hacking Detections 8 | . 8 . Full Trace Events 3 | . 3 . Feedback Events . | . . . Feedback Blocked . | . . . Robot Schematics Acquired . | . . . Robots Built . | . . . Matter . | . . . Time . | . . . Total Robot Build Rating . | . . . Part Schematics Acquired . | . . . Parts Built . | . . . Matter . | . . . Time . | . . . Total Part Build Rating . | . . . Parts Repaired 3 | . 3 . Time 90 | . 90 . Parts Recycled . | . . . Recycled Matter . | . . . Retrieved Matter . | . . . Retrieved Components . | . . . Parts Scanalyzed . | . . . Part Schematics Acquired . | . . . Parts Damaged . | . . . Bothacking | -11 -10 -10 ------------ Run | Scr Mat Min Used RIF Installer . | . . . Robots Hacked 9 | . 9 . Non-combat 9 | . 9 . Combat . | . . . Robot Hacks Applied 14 | . 14 . parse_system 4 | . 4 . no_distress 9 | . 9 . find_recycling 1 | . 1 . Relay Couplers Released . | . . . Robots Rewired . | . . . Allies Hacked . | . . . Hacks Repelled . | . . . Allies | -11 -10 -10 -------- Run | Scr Mat Min Total Allies . | . . . Largest Group . | . . . Highest-Rated Group . | . . . Highest-Rated Ally . | . . . Total Orders . | . . . Ally Attacks . | . . . Total Damage . | . . . Kills . | . . . Allies Corrupted . | . . . Allies Melted . | . . . Intel | -11 -10 -10 ------- Run | Scr Mat Min Robot Analysis Total 1 | . 1 . Derelict Logs Recovered 1 | . . 1 Drone Launches . | . . . Drone Recoveries . | . . . Exploration | -11 -10 -10 ------------- Run | Scr Mat Min Turns Passed 1531 | 72 1251 208 Spaces Moved 1109 | 57 877 175 Core 2 | 2 . . Treads . | . . . Legs 6 | . 6 . Wheels 1101 | 55 871 175 Hover . | . . . Flight . | . . . Fastest Speed 50 | 50 80 90 Average Speed 88 | 78 89 90 Slowest Speed 180 | 80 180 90 Overloaded Moves . | . . . Propulsion Burnouts . | . . . Robots Hopped . | . . . Cave-ins Triggered . | . . . Exploration Rate (%) 49 | 3 99 45 Regions Visited 2 Branch Regions 1 Pre-discovered Areas 2 | . . 2 Known Exits Taken . | . . . Unknown Exits Taken 2 | 1 1 . Scrap Searched . | . . . Spaces Dug 21 | . 3 18 Terrain Destroyed 84 | . 9 75 Melee . | . . . Projectile 3 | . 3 . AOE 81 | . 6 75 Terrain Rammed . | . . . Walls Destroyed . | . . . Machines Disabled . | . . . Actions | -11 -10 -10 --------- Run | Scr Mat Min Total 1554 | 77 1275 202 Wait 323 | 9 313 1 Move 1107 | 56 876 175 Hop . | . . . Pick Up 21 | 4 16 1 Fast Attach 8 | 6 2 . Attach 4 | . 1 3 Detach . | . . . Swap 12 | . 10 2 Drop 11 | . 10 1 Fire 51 | 2 30 19 Melee 17 | . 17 . Ram . | . . . Kick . | . . . Crush . | . . . Escape Stasis . | . . . Rewire . | . . . Trap . | . . . Miscellaneous . | . . . Route ------- -11/Scrapyard -10/Materials (discovered 4 exits: [*Mat x3] / [*Min]) -10/Mines History --------- Turn | Location | Event 15 | -11/Scrapyard | Discovered new exit (range 16) 73 | -11/Scrapyard | Entered Materials 309 | -10/Materials | Build established: Mutant 338 | -10/Materials | Discovered new exit (range 15) 501 | -10/Materials | Central database locked down 1021 | -10/Materials | Discovered new exit (range 8) 1123 | -10/Materials | Discovered new exit (range 10) 1184 | -10/Materials | Discovered new exit (range 15) 1207 | -10/Materials | Repaired Wheel 1249 | -10/Materials | Repaired Hacking Suite 1275 | -10/Materials | Repaired Wheel 1324 | -10/Materials | Entered Mines 1425 | -10/Mines | Found a damaged Exp. Sensor Array with a note attached 1427 | -10/Mines | Found Prototype Device 1437 | -10/Mines | Learned location of Recycling (-7) 1444 | -10/Mines | Learned location of Storage (-7) 1481 | -10/Mines | Assembled infested the area 1486 | -10/Mines | Assisted by a Guerilla fighting off Assembled 1516 | -10/Mines | Core integrity fell below 50% 1531 | -10/Mines | Core integrity fell below 20% 1532 | -10/Mines | Destroyed by D-53 Grenadier with Mini Grenade Launcher Last Messages --------------- 01511_ C-30 ARC bursts open, deploying its payload. 01511_ D-53 Grenadier unfolds itself. 01512_ The unstable cave ceiling collapses. 01513_ Wheel destroyed. 01513_ HV Slug penetrates Wall. 01516_ K-01 Serf destroyed. 01517_ D-53 Grenadier misfires. 01518_ The unstable cave ceiling collapses. 01519_ D-53 Grenadier misfires. 01519_ Lgt. Ion Engine destroyed. 01519_ EM Pulse Gun destroyed. 01521_ VN-BQL(h) destroyed. 01526_ D-53 Grenadier misfires. 01526_ Wheel destroyed. 01528_ The unstable cave ceiling collapses. 01528_ EM Pulse Gun destroyed. 01529_ The unstable cave ceiling collapses. 01532_ EM Pulse Gun destroyed. [Achievement: Overachiever] Map ----- +----------------------------------------------------+ | ???##????????????????????????????????????????????? | | ??? #????????????????????????????????????????????? | | ??? #????????????????????????????????????????????? | | ??? #????????????????????????????????????????????? | | ??? #????????????????????????????????????????????? | | ??# #????????????????????????????????????????????? | | ??# #???????????###??????????????????????????????? | | ??# #???????????? #???????#?????????????????????? | | ?## #???????????? ####?? #?????????????????????? | | ## ##???????????? ### #?????????????????????? | | # #???????????? ??????????????????????? | | #????????????# ??????????????????????? | | [ #???????????## ##?????????????????????? | | # ##??????????# # ??????????????????????? | | ## ##??????#??# ??????????????????????? | | ## #?????# ## ??????????????????????? | | # #???### ??????????????????????? | | #??## # ##?????????????????????? | | #??# #?????????????????????? | | ##??# # #?????????????????????? | | ## ###???# ### ##????????????????????? | | ### #????## # # ##???????????????????? | | #?# ###### %= d ##??????????????????? | | ??# %= #??????????????????? | | ??# ##### d #??????????????????? | | ??# #???# @ #??????????????????? | | ??# #???## ## #??????????????????? | | ### #????### #### #??????????????????? | | ## #??????#####??#### #??????????????????? | | ##???????????????## ##??????????????????? | | #????????????????# t #???????????????????? | | ##????????????????#### #???????????????????? | | # ##????????????????????? #???????????????????? | | ####??????????????????????## #???????????????????? | | ???????????????????????????? #???????????????????? | | ???????????????????????????? #???????????????????? | | ???????????????????????????? #???????????????????? | | ?????????????????????????????#???????????????????? | | ?????????????????????????????????????????????????? | | ?????????????????????????????????????????????????? | | ?????????????????????????????????????????????????? | | ?????????????????????????????????????????????????? | | ?????????????????????????????????????????????????? | | ########?????????????????????????????????????????? | | # ##????????????????????####????????????????? | | #############???###### ##???????????????? | | #???# #???????????##??? | | ########### #???# ### ##?????? #??? | | # #???????### ##### # # #### #??? | | ###### #???????# [* = #??? | +----------------------------------------------------+ Best States ------------- Heat Dissipation 25 Energy Generation 10 Energy Capacity 250 Matter Stores 300 Matter Capacity 300 Sight Range 16 Terrain Scan Density 10 Evasion (%) 44 Targeting Accuracy 5 Item Schematics ----------------- None Robot Schematics ------------------ None Fabricated ------------ Nothing Alien Tech Used ----------------- None Achievements -------------- Overachiever Challenges ------------ None Game ------ Seed SpikedDeuteriumAutohacker Manual? 0 Play Time 00:57:06 Cumulative 164.4 hours Start 2021.12.15 @ 18:30:32 End 2021.12.15 @ 19:32:31 Sessions 1 Manual Loads 0 Difficulty Rogue Special Mode None Game No. 68 Rogue 68 Adventurer 0 Explorer 0 Win Type - Total 0 Types 0/0/0/0/0/0/0/0/0 Lore% 70 Gallery% 73 Achievement% 50 Wizard Run 0 Options --------- ASCII 0 Keyboard 0 Movement Numpad Keybinds 0 Fullscreen 1 Font 16/SmallcapsGlow Map View 50x54 Tactical HUD 1 Map Filters NONE Filters NONE Steam 1 RUN: c2c28394-dd60-4943-8a71-4116b33f178e